bitfinex/quotes_SOLUSD_20241028
["timestamp","ask_amount","ask_price","bid_price","bid_amount"]
[1730078885530,16.2701,175.93,175.87,8.91985373]
[1730078885834,25.18995373,175.93,175.87,8.91985373]
[1730078890548,8.91985373,175.92,175.87,8.91985373]
[1730078892543,5.6831,175.96,175.88,9.17083373]
[1730078892735,16.2982,175.98,175.93,8.91985373]
[1730078892736,25.21805373,175.98,175.93,8.91985373]
[1730078893333,8.91985373,175.97,175.91,8.91985373]
[1730078893651,8.91985373,175.96,175.91,8.91985373]
[1730078894018,8.91985373,175.97,175.91,8.91985373]
[1730078895049,8.91985373,175.97,175.92,8.91985373]
[1730078896325,16.2982,175.98,175.93,8.91985373]
[1730078896637,16.2982,175.98,175.94,8.91985373]
[1730078897635,16.2982,175.98,175.95,8.91985373]
[1730078898145,12.0777,175.99,175.95,8.91985373]
[1730078898146,6.3955,175.99,175.95,8.91985373]
[1730078898454,22.1824,176.03,175.97,8.91985373]
[1730078898623,27.8632,176.03,175.98,8.91985373]
[1730078899250,36.78305373,176.03,175.98,8.91985373]
[1730078899437,36.28305373,176.03,175.97,8.91985373]
[1730078899851,21.6824,176.03,176.0,9.17083373]
[1730078900055,5.6804,176.05,176.0,9.17083373]
[1730078900348,14.59975373,176.06,176.01,8.91985373]
[1730078901134,14.09975373,176.06,176.01,8.91985373]
[1730078901649,14.09975373,176.06,176.0,9.17083373]
[1730078901833,13.59975373,176.06,176.0,9.17083373]
[1730078902369,8.91985373,176.05,176.0,9.17083373]
[1730078902527,8.41985373,176.05,176.0,9.17083373]
[1730078902733,14.59975373,176.06,176.01,8.91985373]
[1730078903353,14.09975373,176.06,176.01,8.91985373]
[1730078903549,8.91985373,176.05,176.0,0.25098]
[1730078903860,14.60015373,176.05,176.0,0.25098]
[1730078904060,14.10015373,176.05,176.0,0.25098]
[1730078904851,5.6803,176.05,176.0,0.25098]
[1730078905057,8.91985373,176.05,176.0,0.25098]
[1730078905568,8.91985373,176.05,176.0,9.17083373]
[1730078905852,14.59965373,176.06,176.0,9.17083373]
[1730078906277,8.91985373,176.05,176.0,9.17083373]
[1730078907353,8.91985373,176.05,176.0,8.91985373]
[1730078907560,8.91985373,176.04,175.99,8.91985373]
[1730078908779,14.60055373,176.04,175.99,8.91985373]
[1730078908942,8.91985373,176.03,175.92,0.2]
[1730078909134,8.91985373,176.01,175.96,8.91985373]
[1730078910239,14.60145373,176.01,175.97,0.25098]
[1730078910542,5.6816,176.01,175.97,0.25098]
[1730078910941,5.6816,176.01,175.97,9.17083373]
[1730078912069,5.6816,176.01,175.97,14.85353373]
[1730078913165,5.6816,176.01,175.97,5.93368]
[1730078914244,5.6816,176.01,175.97,14.85353373]
[1730078915343,8.91985373,176.03,175.97,14.85353373]
[1730078917768,5.6811,176.02,175.97,14.85353373]
[1730078918571,5.6811,176.02,175.98,8.91985373]
[1730078919553,8.91985373,176.02,175.97,14.85353373]
[1730078920657,14.60105373,176.02,175.97,14.85353373]
[1730078921862,14.60105373,176.02,175.92,0.1]
[1730078921863,8.91985373,175.98,175.89,5.93634154]
[1730078922059,8.91985373,175.96,175.91,8.91985373]
[1730078922555,8.91985373,175.96,175.9,8.91985373]
[1730078923160,8.91985373,175.93,175.89,5.93634154]
[1730078923367,8.91985373,175.93,175.84,0.1]
[1730078923368,8.91985373,175.93,175.85,5.6866]
[1730078923555,8.91985373,175.93,175.87,8.91985373]
[1730078924568,8.91985373,175.93,175.88,5.93658]
[1730078927745,5.6838,175.94,175.88,14.85643373]
[1730078927977,8.91985373,175.93,175.88,14.85643373]
[1730078928272,5.6838,175.94,175.88,14.85643373]
[1730078928273,14.60365373,175.94,175.88,14.85643373]
[1730078928653,14.60365373,175.94,175.88,9.17083373]
[1730078929465,8.91985373,175.93,175.88,9.17083373]
[1730078929664,8.91985373,175.93,175.89,5.6853]
[1730078930068,14.60365373,175.94,175.89,5.6853]
[1730078930269,14.60365373,175.94,175.89,14.60515373]
[1730078930645,14.60365373,175.94,175.88,9.17083373]
[1730078931066,8.91985373,175.89,175.85,5.6866]
[1730078931281,8.91985373,175.89,175.84,5.93892678]
[1730078931282,8.91985373,175.88,175.84,11.62572678]
[1730078931474,8.91985373,175.87,175.84,11.62572678]
[1730078933681,8.91985373,175.88,175.84,11.62572678]
[1730078933860,14.60525373,175.89,175.84,11.62572678]
[1730078934459,16.3495,175.92,175.84,11.62572678]
[1730078934460,5.6847,175.91,175.85,5.6866]
[1730078934664,5.6847,175.91,175.86,8.91985373]
[1730078934665,8.91985373,175.91,175.86,8.91985373]
[1730078934857,8.91985373,175.9,175.85,14.60645373]
[1730078935758,14.60455373,175.91,175.86,8.91985373]
[1730078936673,8.91985373,175.9,175.85,14.60645373]
[1730078936880,14.60455373,175.91,175.85,14.60645373]
[1730078937382,5.6847,175.91,175.86,8.91985373]
[1730078937681,14.60455373,175.91,175.86,14.60585373]
[1730078940472,14.60455373,175.91,175.85,14.60645373]
[1730078941681,22.0339,175.92,175.87,8.91985373]
[1730078942281,30.95375373,175.92,175.87,8.91985373]
[1730078943083,22.0339,175.92,175.87,8.91985373]
[1730078943277,30.95375373,175.92,175.87,8.91985373]
[1730078943991,30.95375373,175.92,175.86,14.60605373]
[1730078944293,30.95375373,175.92,175.86,8.91985373]
[1730078947888,14.60475373,175.91,175.86,8.91985373]
[1730078948090,8.91985373,175.9,175.85,14.60645373]
[1730078948991,14.60475373,175.91,175.86,5.6863]
[1730078949887,8.91985373,175.89,175.85,5.6866]
[1730078953090,8.91985373,175.89,175.83,8.91985373]
[1730078953294,14.60525373,175.89,175.83,8.91985373]
[1730078955594,14.60525373,175.89,175.84,5.6869]
[1730078961674,14.60525373,175.89,175.84,8.91985373]
[1730078962374,5.6854,175.89,175.84,8.91985373]
[1730078962995,8.91985373,175.9,175.85,8.91985373]
[1730078963194,14.60495373,175.9,175.85,14.60635373]
[1730078971296,8.91985373,175.89,175.82,5.6876]
[1730078971495,8.91985373,175.86,175.82,5.6876]
[1730078972391,25.36615373,175.86,175.82,5.6876]
[1730078972589,25.36615373,175.86,175.8,8.91985373]
[1730078972986,25.36615373,175.86,175.81,8.91985373]
[1730078974307,25.36615373,175.86,175.82,5.6876]
[1730078974693,16.4463,175.86,175.82,5.6876]
[1730078976315,16.4463,175.86,175.81,8.91985373]
[1730078977007,16.4463,175.86,175.82,8.91985373]
[1730078977600,16.4463,175.86,175.82,14.60725373]
[1730078981097,16.4463,175.86,175.81,8.91985373]
[1730078983309,16.4463,175.86,175.82,8.91985373]
[1730078984413,16.4463,175.86,175.82,14.60725373]
[1730078987391,16.4463,175.86,175.82,8.91985373]
[1730078991914,22.1327,175.86,175.81,8.91985373]
[1730078993214,22.1327,175.86,175.82,5.6876]
[1730078993840,31.05255373,175.86,175.8,14.60785373]
[1730078994698,22.1327,175.86,175.82,5.6876]
[1730078995814,22.1327,175.86,175.81,14.60765373]
[1730078996316,31.05255373,175.86,175.81,14.60765373]
[1730078998718,16.4463,175.86,175.82,8.91985373]
[1730079000799,16.4463,175.86,175.82,14.60735373]
[1730079004206,20.0,175.89,175.84,8.91985373]
[1730079004415,20.0,175.89,175.85,8.91985373]
[1730079005026,25.6856,175.89,175.85,8.91985373]
[1730079005228,16.0762,175.9,175.86,8.91985373]
[1730079005522,21.7613,175.9,175.87,8.91985373]
[1730079005717,21.7613,175.9,175.86,8.91985373]
[1730079006333,30.68115373,175.9,175.85,14.60625373]
[1730079006531,30.68115373,175.9,175.85,8.91985373]
[1730079007508,30.68115373,175.9,175.85,14.60625373]
[1730079008929,21.7613,175.9,175.84,8.91985373]
[1730079009129,8.91985373,175.88,175.82,8.91985373]
[1730079009303,8.91985373,175.86,175.79,5.6886]
[1730079009504,35.9739,175.9,175.82,8.91985373]
[1730079009505,8.91985373,175.87,175.82,8.91985373]
[1730079009821,8.91985373,175.89,175.84,8.91985373]
[1730079010526,21.7613,175.9,175.86,8.91985373]
[1730079010833,21.7613,175.9,175.86,14.60605373]
[1730079010834,16.0762,175.9,175.86,14.60605373]
[1730079011037,16.0762,175.9,175.87,8.91985373]
[1730079011209,16.0762,175.9,175.86,14.60605373]
[1730079012311,21.7612,175.9,175.86,14.60605373]
[1730079013319,16.0762,175.9,175.86,14.60605373]
[1730079014338,16.0762,175.9,175.87,8.91985373]
[1730079015216,16.0762,175.9,175.86,14.60605373]
[1730079016341,16.0762,175.9,175.86,8.91985373]
[1730079017428,16.0762,175.9,175.86,14.60595373]
[1730079018019,16.0762,175.9,175.87,8.91985373]
[1730079019638,6.3994,175.91,175.89,8.91985373]
[1730079019833,12.0841,175.91,175.89,8.91985373]
[1730079022210,12.0841,175.91,175.86,5.6861]
[1730079022417,12.0841,175.91,175.89,8.91985373]
[1730079023839,12.0841,175.91,175.88,8.91985373]
[1730079024034,25.02015373,175.89,175.79,5.93235087]
[1730079024240,25.02015373,175.89,175.84,8.91985373]
[1730079024418,25.02015373,175.89,175.85,8.91985373]
[1730079024419,5.6856,175.88,175.85,8.91985373]
[1730079024829,5.6856,175.88,175.79,5.93235087]
[1730079025042,8.91985373,175.86,175.79,5.93235087]
[1730079025237,15.20205373,175.85,175.8,8.91985373]
[1730079026233,11.9691,175.85,175.81,8.91985373]
[1730079027953,11.9691,175.85,175.8,5.6882]
[1730079027954,20.88895373,175.85,175.8,14.60805373]
[1730079028743,20.88895373,175.85,175.79,8.91985373]
[1730079028944,20.88895373,175.85,175.8,8.91985373]
[1730079030554,20.0,175.88,175.82,8.91985373]
[1730079030847,25.6857,175.88,175.83,8.91985373]
[1730079032329,25.6857,175.88,175.83,14.60715373]
[1730079032941,8.91985373,175.87,175.82,8.91985373]
[1730079033949,5.6863,175.86,175.82,8.91985373]
[1730079035252,28.91985373,175.88,175.82,8.91985373]
[1730079035440,5.686,175.87,175.82,8.91985373]
[1730079035954,25.6857,175.88,175.83,8.91985373]
[1730079036938,25.6857,175.88,175.84,8.91985373]
[1730079039541,25.6857,175.88,175.77,1.0964]
[1730079039733,25.6857,175.88,175.84,8.91985373]
[1730079040452,25.6857,175.88,175.83,8.91985373]
[1730079041135,34.60555373,175.88,175.83,8.91985373]
[1730079041431,34.60555373,175.88,175.76,5.92745175]
[1730079041432,8.91985373,175.86,175.76,5.92745175]
[1730079041640,8.91985373,175.85,175.76,5.92745175]
[1730079041840,8.91985373,175.85,175.79,8.91985373]
[1730079042256,8.91985373,175.84,175.79,8.91985373]
[1730079042634,5.6873,175.83,175.79,8.91985373]
[1730079042853,8.91985373,175.84,175.79,8.91985373]
[1730079043157,5.687,175.84,175.79,14.60825373]
[1730079043658,14.60685373,175.84,175.76,5.92745175]
[1730079043839,25.16995373,175.83,175.78,8.91985373]
[1730079044944,5.6876,175.82,175.78,8.91985373]
[1730079046159,16.2501,175.83,175.8,8.91985373]
[1730079046359,16.2501,175.83,175.81,8.91985373]
[1730079046562,16.2501,175.83,175.82,8.91985373]
[1730079047060,5.6863,175.86,175.82,8.91985373]
[1730079047548,14.60615373,175.86,175.81,8.91985373]
[1730079049355,14.60615373,175.86,175.8,14.60805373]
[1730079050862,14.60615373,175.86,175.81,8.91985373]
[1730079051340,8.91985373,175.85,175.8,8.91985373]
[1730079051855,5.6869,175.84,175.8,8.91985373]
[1730079052163,5.6869,175.84,175.8,14.60805373]
[1730079053260,8.91985373,175.86,175.8,14.60805373]
[1730079053563,5.6866,175.85,175.8,14.60805373]
[1730079053746,5.6866,175.85,175.8,8.91985373]
[1730079058542,5.6863,175.86,175.82,8.91985373]
[1730079061869,14.60615373,175.86,175.81,8.91985373]
[1730079064471,14.60615373,175.86,175.8,5.6879]
[1730079064472,14.60615373,175.86,175.8,14.60775373]
[1730079065772,14.60615373,175.86,175.8,8.91985373]
[1730079065974,14.60615373,175.86,175.81,8.91985373]
[1730079069778,14.60615373,175.86,175.8,5.688]
[1730079070074,14.60615373,175.86,175.81,8.91985373]
[1730079070285,5.6863,175.86,175.81,8.91985373]
[1730079070580,5.6863,175.86,175.82,8.91985373]
[1730079071176,15.0205,175.87,175.82,8.91985373]
[1730079071391,15.0205,175.87,175.83,8.91985373]
[1730079071875,25.6857,175.88,175.83,14.60695373]
[1730079072180,25.6857,175.88,175.84,8.91985373]
[1730079072559,25.6857,175.88,175.83,14.60695373]
[1730079072757,25.6857,175.88,175.84,8.91985373]
[1730079073070,25.6857,175.88,175.84,14.60675373]
[1730079073273,5.6857,175.88,175.84,14.60675373]
[1730079073473,5.6857,175.88,175.83,8.91985373]
[1730079074360,20.0,175.9,175.85,8.91985373]
[1730079074572,8.91985373,175.89,175.84,8.91985373]
[1730079075380,14.60525373,175.89,175.84,14.60655373]
[1730079075560,14.60525373,175.89,175.84,5.6867]
[1730079076282,14.60525373,175.89,175.83,8.91985373]
[1730079076455,8.91985373,175.86,175.79,5.6886]
[1730079076658,8.91985373,175.85,175.8,8.91985373]
[1730079077468,8.91985373,175.85,175.79,5.6886]
[1730079077469,8.91985373,175.84,175.79,14.60845373]
[1730079077866,8.91985373,175.84,175.79,5.6886]
[1730079078363,25.6873,175.83,175.78,8.91985373]
[1730079078687,25.6873,175.83,175.77,14.60895373]
[1730079078688,8.91985373,175.82,175.77,14.60895373]
[1730079079059,8.91985373,175.82,175.77,5.6891]
[1730079079365,22.3063,175.81,175.76,14.84789573]
[1730079079589,8.91985373,175.8,175.76,5.928042]
[1730079079895,55.00303773,175.81,175.76,14.84789573]
[1730079080265,25.6873,175.83,175.78,8.91985373]
[1730079080465,34.60715373,175.83,175.77,8.91985373]
[1730079081464,8.91985373,175.82,175.77,14.60895373]
[1730079083072,14.60755373,175.82,175.77,14.60895373]
[1730079083569,5.6877,175.82,175.77,14.60895373]
[1730079083904,29.463784,175.84,175.79,8.91985373]
[1730079084193,5.6869,175.84,175.79,8.91985373]
[1730079085684,5.6869,175.84,175.79,14.60835373]
[1730079085886,5.6869,175.84,175.8,8.91985373]
[1730079087987,8.91985373,175.87,175.82,8.91985373]
[1730079089397,14.60605373,175.87,175.82,14.60745373]
[1730079089695,8.91985373,175.86,175.81,8.91985373]
[1730079089872,8.91985373,175.85,175.8,14.60805373]
[1730079090574,8.91985373,175.86,175.81,8.91985373]
[1730079090887,14.60605373,175.87,175.82,8.91985373]
[1730079091793,41.7774,175.89,175.82,8.91985373]
[1730079091989,38.38243773,175.88,175.83,8.91985373]
[1730079092186,27.4628,175.89,175.84,8.91985373]
[1730079092373,36.38265373,175.89,175.84,8.91985373]
[1730079092574,36.38265373,175.89,175.83,8.91985373]
[1730079093096,27.4628,175.89,175.83,14.60685373]
[1730079093399,20.0,175.88,175.83,14.60685373]
[1730079093707,28.91985373,175.88,175.83,14.60685373]
[1730079094382,34.60565373,175.88,175.83,8.91985373]
[1730079094682,8.91985373,175.87,175.82,8.91985373]
[1730079094882,8.91985373,175.84,175.78,5.6889]
[1730079095083,8.91985373,175.84,175.78,14.60875373]
[1730079095581,28.91985373,175.83,175.78,14.60875373]
[1730079096195,8.91985373,175.83,175.78,14.60875373]
[1730079096409,14.60725373,175.83,175.78,14.60875373]
[1730079097172,14.60725373,175.83,175.78,5.6889]
[1730079097387,14.60725373,175.83,175.75,5.93897299]
[1730079097586,8.91985373,175.82,175.77,8.91985373]
[1730079098510,14.60765373,175.82,175.77,8.91985373]
[1730079099396,5.6878,175.82,175.77,8.91985373]
[1730079101097,31.09545373,175.83,175.78,8.91985373]
[1730079101098,27.8629,175.83,175.78,8.91985373]
[1730079102387,27.8629,175.83,175.78,14.60865373]
[1730079104206,27.8629,175.83,175.79,8.91985373]
[1730079104505,36.78275373,175.83,175.78,8.91985373]
[1730079105710,36.78275373,175.83,175.78,14.60875373]
[1730079107500,36.78275373,175.83,175.78,8.91985373]
[1730079108599,15.8629,175.83,175.79,8.91985373]
[1730079108921,8.91985373,175.85,175.8,8.91985373]
[1730079109606,8.91985373,175.85,175.79,8.91985373]
[1730079110100,6.2832,175.86,175.8,14.60805373]
[1730079110296,15.20305373,175.86,175.8,14.60805373]
[1730079110613,15.8708,175.87,175.83,8.91985373]
[1730079111291,15.8708,175.87,175.82,8.91985373]
[1730079111600,24.79065373,175.87,175.82,8.91985373]
[1730079112180,24.79065373,175.87,175.83,5.6873]
[1730079114804,24.79065373,175.87,175.82,8.91985373]
[1730079115603,11.9752,175.9,175.83,8.91985373]
[1730079115794,11.9752,175.9,175.84,8.91985373]
[1730079116001,8.91985373,175.89,175.84,8.91985373]
[1730079116909,8.91985373,175.89,175.85,5.6866]
[1730079117486,8.91985373,175.88,175.84,5.6869]
[1730079118211,8.91985373,175.89,175.84,14.60675373]
[1730079118785,8.91985373,175.89,175.84,8.91985373]
[1730079119182,11.9751,175.9,175.84,8.91985373]
[1730079119394,8.91985373,175.89,175.81,0.25098]
[1730079119605,11.9751,175.9,175.83,8.91985373]
[1730079119898,8.91985373,175.88,175.83,8.91985373]
[1730079120511,8.91985373,175.87,175.82,14.60745373]
[1730079121001,8.91985373,175.88,175.83,8.91985373]
[1730079121402,8.91985373,175.87,175.82,14.60745373]
[1730079121916,8.91985373,175.84,175.82,5.6876]
[1730079122211,8.91985373,175.84,175.8,0.25098]
[1730079122408,14.60685373,175.84,175.79,5.6886]
[1730079122598,8.91985373,175.84,175.79,5.6886]
[1730079123606,8.91985373,175.84,175.78,8.91985373]
[1730079124190,8.91985373,175.84,175.79,8.91985373]
[1730079124499,23.776884,175.89,175.81,8.91985373]
[1730079124500,8.91985373,175.86,175.81,8.91985373]
[1730079124905,8.91985373,175.85,175.8,8.91985373]
[1730079125411,8.91985373,175.85,175.81,5.6879]
[1730079127308,8.91985373,175.85,175.8,8.91985373]
[1730079128412,8.91985373,175.86,175.81,8.91985373]
[1730079129703,8.91985373,175.86,175.82,5.6876]
[1730079132391,8.91985373,175.87,175.82,5.6876]
[1730079133208,8.91985373,175.86,175.82,5.6876]
[1730079134695,8.91985373,175.87,175.82,14.60745373]
[1730079135214,6.29,175.9,175.84,8.91985373]
[1730079135400,15.20985373,175.9,175.82,5.6876]
[1730079135609,8.91985373,175.88,175.83,8.91985373]
[1730079136506,8.91985373,175.88,175.84,5.6869]
[1730079136507,28.91985373,175.87,175.84,5.6869]
[1730079136810,8.91985373,175.86,175.84,5.6869]
[1730079137019,8.91985373,175.86,175.81,5.93888]
[1730079137500,8.91985373,175.84,175.76,5.94085414]
[1730079137815,8.91985373,175.83,175.78,8.91985373]
[1730079138820,8.91985373,175.83,175.79,0.25098]
[1730079139517,8.91985373,175.84,175.79,0.25098]
[1730079140605,25.53735373,175.85,175.8,14.60805373]
[1730079142516,16.2628,175.89,175.83,8.91985373]
[1730079142813,30.86805373,175.89,175.83,8.91985373]
[1730079143597,30.86805373,175.89,175.84,5.6869]
[1730079144620,30.86805373,175.89,175.84,8.91985373]
[1730079145814,8.91985373,175.88,175.83,5.687]
[1730079147605,14.60555373,175.88,175.83,5.687]
[1730079148512,8.91985373,175.85,175.8,14.60805373]
[1730079149724,8.91985373,175.85,175.79,0.25098]
[1730079149725,8.91985373,175.84,175.79,5.6883]
[1730079149903,8.91985373,175.84,175.79,14.60815373]
[1730079150810,8.91985373,175.84,175.8,5.6882]
[1730079151111,14.60665373,175.85,175.8,14.60805373]
[1730079151823,14.60665373,175.85,175.8,8.91985373]
[1730079152012,8.91985373,175.83,175.78,5.94050888]
[1730079152213,8.91985373,175.84,175.79,8.91985373]
[1730079152518,5.6868,175.85,175.8,8.91985373]
[1730079152519,14.60665373,175.85,175.8,8.91985373]
[1730079153101,8.91985373,175.84,175.79,14.60845373]
[1730079158521,8.91985373,175.83,175.79,5.6886]
[1730079159612,8.91985373,175.83,175.77,8.91985373]
[1730079160921,8.91985373,175.83,175.78,8.91985373]
[1730079161123,20.97225373,175.84,175.78,8.91985373]
[1730079162215,20.97225373,175.84,175.79,5.6886]
[1730079162414,20.97225373,175.84,175.79,14.60845373]
[1730079163120,20.97225373,175.84,175.79,8.91985373]
[1730079165428,12.0524,175.84,175.79,8.91985373]
[1730079165599,20.97225373,175.84,175.79,8.91985373]
[1730079165930,16.2628,175.89,175.8,0.25098]
[1730079166129,16.2628,175.89,175.86,8.91985373]
[1730079166507,6.3552,175.91,175.88,8.91985373]
[1730079166830,6.3552,175.91,175.89,8.91985373]
[1730079167325,6.3552,175.91,175.88,8.91985373]
[1730079168326,6.3552,175.91,175.88,14.60525373]
[1730079168727,15.7077,175.93,175.89,8.91985373]
[1730079169424,15.7077,175.93,175.9,8.91985373]
[1730079170519,15.7077,175.93,175.9,14.60465373]
[1730079170823,6.4837,175.95,175.9,14.60465373]
[1730079171325,6.4837,175.95,175.91,8.91985373]
[1730079171922,6.4837,175.95,175.9,5.6848]
[1730079171923,15.40355373,175.95,175.9,14.60465373]
[1730079172230,15.40355373,175.95,175.9,5.6848]
[1730079172409,6.4837,175.95,175.9,14.60465373]
[1730079172606,15.40355373,175.95,175.9,8.91985373]
[1730079174418,15.40355373,175.95,175.9,5.685]
[1730079175313,8.91985373,175.94,175.89,8.91985373]
[1730079176420,8.91985373,175.94,175.9,5.685]
[1730079178109,15.40355373,175.95,175.9,5.685]
[1730079178811,15.7077,175.97,175.92,8.91985373]
[1730079178812,24.62755373,175.97,175.92,8.91985373]
[1730079179147,8.91985373,175.96,175.91,8.91985373]
[1730079180107,8.91985373,175.95,175.9,8.91985373]
[1730079180303,8.91985373,175.91,175.87,5.686]
[1730079182814,6.3421,175.93,175.88,8.91985373]
[1730079183009,6.3421,175.93,175.89,8.91985373]
[1730079183320,15.26195373,175.93,175.83,5.6873]
[1730079183514,8.91985373,175.92,175.84,0.25098]
[1730079183720,8.91985373,175.92,175.87,8.91985373]
[1730079184724,8.91985373,175.92,175.88,5.6856]
[1730079185225,8.91985373,175.91,175.81,0.1]
[1730079185435,8.91985373,175.91,175.82,5.7876]
[1730079185612,8.91985373,175.91,175.86,8.91985373]
[1730079186439,14.60445373,175.92,175.87,5.686]
[1730079187029,14.60445373,175.92,175.81,5.6879]
[1730079187030,8.91985373,175.89,175.81,5.6879]
[1730079187424,8.91985373,175.85,175.81,5.6879]
[1730079188061,8.91985373,175.84,175.76,1.0964]
[1730079188344,8.91985373,175.84,175.79,8.91985373]
[1730079188853,8.91985373,175.83,175.73,0.1]
[1730079189232,8.91985373,175.83,175.77,8.91985373]
[1730079189932,8.91985373,175.83,175.78,5.6889]
[1730079190243,8.91985373,175.83,175.78,14.60875373]
[1730079190946,8.91985373,175.83,175.75,5.6899]
[1730079191152,8.91985373,175.83,175.76,0.12549]
[1730079191352,8.91985373,175.83,175.78,8.91985373]
[1730079191529,30.17325373,175.84,175.78,8.91985373]
[1730079192147,24.48625373,175.84,175.78,8.91985373]
[1730079192333,24.48625373,175.84,175.79,14.60845373]
[1730079193555,24.48625373,175.84,175.79,8.91985373]
[1730079193852,15.5664,175.84,175.82,8.91985373]
[1730079194036,6.2457,175.86,175.83,8.91985373]
[1730079194430,6.2457,175.86,175.82,8.91985373]
[1730079195056,6.2457,175.86,175.83,8.91985373]
[1730079196255,6.2457,175.86,175.84,5.6869]
[1730079196638,6.2457,175.86,175.84,14.60675373]
[1730079196839,6.2457,175.86,175.84,5.6869]
[1730079198752,6.2457,175.86,175.83,8.91985373]
[1730079199153,6.2457,175.86,175.78,0.25098]
[1730079199369,6.2457,175.86,175.82,8.91985373]
[1730079200233,6.2457,175.86,175.83,5.6873]
[1730079201136,6.2457,175.86,175.82,8.91985373]
[1730079201436,6.2457,175.86,175.83,8.91985373]
[1730079202561,6.2457,175.86,175.83,14.60685373]
[1730079205357,6.2457,175.86,175.83,8.91985373]
[1730079206573,6.2457,175.86,175.83,14.60685373]
[1730079209745,6.2457,175.86,175.84,8.91985373]
[1730079209959,15.128,175.89,175.85,8.91985373]
[1730079211151,15.128,175.89,175.86,8.91985373]
[1730079212165,15.128,175.89,175.84,5.6869]
[1730079212346,15.128,175.89,175.84,14.60675373]
[1730079212957,15.128,175.89,175.84,8.91985373]
[1730079213659,15.128,175.89,175.85,8.91985373]
[1730079215268,15.128,175.89,175.85,14.60615373]
[1730079216342,15.128,175.89,175.86,8.91985373]
[1730079216663,15.128,175.89,175.85,14.60615373]
[1730079217668,15.128,175.89,175.84,8.91985373]
[1730079217964,8.91985373,175.88,175.82,8.91985373]
[1730079219360,14.60565373,175.88,175.83,5.6873]
[1730079220269,14.60565373,175.88,175.82,8.91985373]
[1730079221770,14.60565373,175.88,175.83,5.6873]
[1730079222568,8.91985373,175.87,175.82,14.60745373]
[1730079222870,8.91985373,175.85,175.8,8.91985373]
[1730079223042,8.91985373,175.85,175.79,5.6886]
[1730079223246,8.91985373,175.85,175.8,8.91985373]
[1730079224372,8.91985373,175.85,175.81,5.6879]
[1730079226446,8.91985373,175.84,175.79,5.6886]
[1730079226666,32.69673773,175.82,175.78,5.94082155]
[1730079226968,23.776884,175.82,175.78,5.6889]
[1730079227674,16.538,175.83,175.78,14.60875373]
[1730079227856,16.538,175.83,175.79,8.91985373]
[1730079229679,16.538,175.83,175.79,14.60835373]
[1730079230060,16.538,175.83,175.8,8.91985373]
[1730079230283,6.5773,175.84,175.81,8.91985373]
[1730079230773,25.49125373,175.87,175.82,8.91985373]
[1730079230774,31.17725373,175.87,175.82,8.91985373]
[1730079231571,22.2574,175.87,175.82,8.91985373]
[1730079231876,31.17725373,175.87,175.82,14.60725373]
[1730079232177,16.5714,175.87,175.83,8.91985373]
[1730079232468,16.5714,175.87,175.84,8.91985373]
[1730079233247,6.4234,175.88,175.85,8.91985373]
[1730079233651,6.4234,175.88,175.84,8.91985373]
[1730079234370,6.4234,175.88,175.84,14.60655373]
[1730079235459,6.4234,175.88,175.85,8.91985373]
[1730079235671,6.4234,175.88,175.86,8.91985373]
[1730079236486,15.0598,175.92,175.87,8.91985373]
[1730079236487,23.97965373,175.92,175.87,8.91985373]
[1730079236779,15.0598,175.92,175.87,8.91985373]
[1730079237361,20.7444,175.92,175.88,8.91985373]
[1730079237565,15.0598,175.92,175.88,14.60545373]
[1730079240669,15.0598,175.92,175.89,8.91985373]
[1730079241978,15.0598,175.92,175.89,14.60515373]
[1730079242182,15.0598,175.92,175.89,5.6853]
[1730079243083,15.0598,175.92,175.88,8.91985373]
[1730079244687,15.0598,175.92,175.88,14.60525373]
[1730079246188,15.0598,175.92,175.82,0.25098]
[1730079246485,15.0598,175.92,175.87,8.91985373]
[1730079247387,15.0598,175.92,175.88,5.6856]
[1730079248762,15.0598,175.92,175.88,8.91985373]
[1730079250089,15.0598,175.92,175.88,14.60525373]
[1730079256088,6.3479,175.93,175.91,8.91985373]
[1730079256390,24.67345373,175.96,175.91,8.91985373]
[1730079257093,5.6834,175.95,175.91,8.91985373]
[1730079257586,5.6834,175.95,175.91,8.09327021]
[1730079258797,21.4367,175.96,175.92,8.91985373]
[1730079259092,15.7536,175.96,175.93,8.91985373]
[1730079259393,6.3926,175.97,175.94,8.91985373]
[1730079259998,8.91985373,175.99,175.94,8.91985373]
[1730079260572,14.60215373,175.99,175.94,14.60335373]
[1730079262995,14.60215373,175.99,175.88,0.12549]
[1730079262996,8.91985373,175.96,175.88,0.12549]
[1730079263296,5.6823,175.99,175.9,8.91985373]
[1730079263297,8.91985373,175.95,175.9,8.91985373]